[Event "Queens Festival Europe 2022"]
[Site "Tornelo"]
[Date "2022.06.19"]
[Round "8.5"]
[White "Egger, Stefanie"]
[Black "Omeri, Eklea"]
[Result "1-0"]
[ECO "D10"]
[WhiteElo "1700"]
[BlackElo "1525"]
[Annotator "NA RC"]
[PlyCount "121"]
[EventDate "2022.06.19"]
[EventType "swiss"]
[EventCountry "NET"]
[SourceTitle "playchess.com"]
[Source "ChessBase"]
[SourceQuality "1"]
[TimeControl "180+2"]

1. d4 {[%emt 0:00:02]} d5 {[%emt 0:00:05]} 2. c4 {[%emt 0:00:02]} c6 {[%emt 0:00:02]} 3. e3 {[%emt 0:00:03]} Nf6 {[%emt 0:00:02]} 4. Nc3 {[%emt 0:00:02]} dxc4 {[%emt 0:00:02]} 5. Bxc4 {[%emt 0:00:02]} g6 {[%emt 0:00:02]} 6. Nf3 {[%emt 0:00:09]} Bg7 {[%emt 0:00:03]} 7. O-O {[%emt 0:00:02]} O-O {[%emt 0:00:02]} 8. b3 {[%emt 0:00:14]} Bg4 {[%emt 0:00:04]} 9. h3 {[%emt 0:00:02]} Bxf3 {[%emt 0:00:03]} 10. Qxf3 {[%emt 0:00:02]} Nbd7 {[%emt 0:00:01]} 11. Bb2 {[%emt 0:00:02]} Nb6 {[%emt 0:00:03]} 12. Be2 {[%emt 0:00:07]} Nfd5 {[%emt 0:00:03]} 13. Qe4 {[%emt 0:00:18]} Nxc3 {[%emt 0:00:08]} 14. Bxc3 {[%emt 0:00:02]} Nd5 {[%emt 0:00:01]} 15. Bb2 {[%emt 0:00:12]} Re8 {[%emt 0:00:06]} 16. Qd3 {[%emt 0:00:08]} e5 {[%emt 0:00:09]} 17. dxe5 {[%emt 0:00:03]} Bxe5 {[%emt 0:00:04]} 18. Bxe5 {[%emt 0:00:04]} Rxe5 {[%emt 0:00:02]} 19. Bf3 {[%emt 0:00:04]} Qe7 {[%emt 0:00:18]} 20. Rfd1 {[%emt 0:00:08]} f5 {[%emt 0:00:21]} 21. Qc4 {[%emt 0:00:20]} Kg7 {[%emt 0:00:08]} 22. Bxd5 {[%emt 0:00:10]} cxd5 {[%emt 0:00:08]} 23. Rxd5 {[%emt 0:00:03]} Rxd5 {[%emt 0:00:06]} 24. Qxd5 {[%emt 0:00:02]} Rc8 {[%emt 0:00:03]} 25. Rd1 {[%emt 0:00:06]} Rc7 {[%emt 0:00:03]} 26. Qd4+ {[%emt 0:00:04]} Kg8 {[%emt 0:00:14]} 27. Qxa7 {[%emt 0:00:09]} Rd7 {[%emt 0:00:07]} 28. Qb8+ {[%emt 0:00:10]} Kf7 {[%emt 0:00:08]} 29. Rxd7 {[%emt 0:00:18]} Qxd7 {[%emt 0:00:02]} 30. Qe5 {[%emt 0:00:04]} Qd1+ {[%emt 0:00:04]} 31. Kh2 {[%emt 0:00:02]} Qd7 {[%emt 0:00:05]} 32. Qd4 {[%emt 0:00:09]} Qc7+ {[%emt 0:00:03]} 33. g3 {[%emt 0:00:07]} Qe7 {[%emt 0:00:08]} 34. Qc4+ {[%emt 0:00:04]} Kg7 {[%emt 0:00:03]} 35. Qd4+ {[%emt 0:00:03]} Kf7 {[%emt 0:00:02]} 36. Kg2 {[%emt 0:00:06]} Kg8 {[%emt 0:00:13]} 37. a4 {[%emt 0:00:03]} h5 {[%emt 0:00:16]} 38. b4 {[%emt 0:00:03]} Kh7 {[%emt 0:00:04]} 39. a5 {[%emt 0:00:09]} Qc7 {[%emt 0:00:05]} 40. Qd5 {[%emt 0:00:10]} Qe7 {[%emt 0:00:11]} 41. b5 {[%emt 0:00:03]} Qc7 {[%emt 0:00:02]} 42. a6 {[%emt 0:00:02]} bxa6 {[%emt 0:00:03]} 43. bxa6 {[%emt 0:00:01]} Qa7 {[%emt 0:00:04]} 44. Qb7+ {[%emt 0:00:01]} Qxb7+ {[%emt 0:00:03]} 45. axb7 {[%emt 0:00:01]} g5 {[%emt 0:00:04]} 46. b8=Q {[%emt 0:00:04]} g4 {[%emt 0:00:02]} 47. hxg4 {[%emt 0:00:02]} hxg4 {[%emt 0:00:02]} 48. Qc7+ {[%emt 0:00:02]} Kg6 {[%emt 0:00:02]} 49. Qd6+ {[%emt 0:00:02]} Kg5 {[%emt 0:00:01]} 50. Qe7+ {[%emt 0:00:01]} Kh5 {[%emt 0:00:04]} 51. Qf7+ {[%emt 0:00:03]} Kg5 {[%emt 0:00:03]} 52. Qg7+ {[%emt 0:00:02]} Kh5 {[%emt 0:00:03]} 53. Qh7+ {[%emt 0:00:02]} Kg5 {[%emt 0:00:03]} 54. f4+ {[%emt 0:00:02]} gxf3+ {[%emt 0:00:03]} 55. Kxf3 {[%emt 0:00:01]} Kf6 {[%emt 0:00:03]} 56. Kf4 {[%emt 0:00:02]} Ke6 {[%emt 0:00:05]} 57. Qxf5+ {[%emt 0:00:01]} Ke7 {[%emt 0:00:02]} 58. Ke5 {[%emt 0:00:05]} Kd8 {[%emt 0:00:06]} 59. Qf7 {[%emt 0:00:01]} Kc8 {[%emt 0:00:02]} 60. Kd6 {[%emt 0:00:01]} Kb8 {[%emt 0:00:02]} 61. Kc6 {[%emt 0:00:02]} 1-0

[Event "Queens Festival Europe 2022"]
[Site "Tornelo"]
[Date "2022.06.19"]
[Round "8.5"]
[White "Farzaliyeva, Shams"]
[Black "Ismayilova, Khanim"]
[Result "0-1"]
[ECO "D66"]
[WhiteElo "1219"]
[BlackElo "1647"]
[Annotator "NA RC"]
[PlyCount "68"]
[EventDate "2022.06.19"]
[EventType "swiss"]
[EventCountry "NET"]
[SourceTitle "playchess.com"]
[Source "ChessBase"]
[SourceQuality "1"]
[TimeControl "180+2"]

1. d4 {[%emt 0:00:02]} d5 {[%emt 0:00:05]} 2. c4 {[%emt 0:00:03]} e6 {[%emt 0:00:01]} 3. Nc3 {[%emt 0:00:02]} Nf6 {[%emt 0:00:01]} 4. Bg5 {[%emt 0:00:02]} Be7 {[%emt 0:00:01]} 5. e3 {[%emt 0:00:03]} O-O {[%emt 0:00:03]} 6. Nf3 {[%emt 0:00:04]} c6 {[%emt 0:00:02]} 7. Bd3 {[%emt 0:00:06]} Nbd7 {[%emt 0:00:04]} 8. O-O {[%emt 0:00:03]} Re8 {[%emt 0:00:02]} 9. Rc1 {[%emt 0:00:05]} Nf8 {[%emt 0:00:02]} 10. Qe2 {[%emt 0:00:03]} Ng6 {[%emt 0:00:02]} 11. h3 {[%emt 0:00:03]} dxc4 {[%emt 0:00:06]} 12. Bxc4 {[%emt 0:00:02]} Nd5 {[%emt 0:00:02]} 13. Bxe7 {[%emt 0:00:08]} Qxe7 {[%emt 0:00:04]} 14. Rfd1 {[%emt 0:00:05]} Bd7 {[%emt 0:00:06]} 15. e4 {[%emt 0:00:03]} Ndf4 {[%emt 0:00:03]} 16. Qe3 {[%emt 0:00:05]} Qb4 {[%emt 0:00:24]} 17. Bb3 {[%emt 0:00:12]} a5 {[%emt 0:00:04]} 18. Ne2 {[%emt 0:00:09]} Nxe2+ {[%emt 0:00:09]} 19. Qxe2 {[%emt 0:00:04]} a4 {[%emt 0:00:06]} 20. Bc4 {[%emt 0:00:06]} Rec8 {[%emt 0:00:18]} 21. a3 {[%emt 0:00:02]} Qb6 {[%emt 0:00:03]} 22. e5 {[%emt 0:00:16]} Nf4 {[%emt 0:00:02]} 23. Qd2 {[%emt 0:00:02]} Nd5 {[%emt 0:00:02]} 24. Bxd5 {[%emt 0:00:02]} cxd5 {[%emt 0:00:02]} 25. Ne1 {[%emt 0:00:16]} Bb5 {[%emt 0:00:11]} 26. Qb4 {[%emt 0:00:16]} Qa6 {[%emt 0:00:26]} 27. Rc5 {[%emt 0:00:09]} Bc4 {[%emt 0:00:04]} 28. Rxc8+ {[%emt 0:00:08]} Rxc8 {[%emt 0:00:02]} 29. Rc1 {[%emt 0:00:01]} Qa7 {[%emt 0:00:06]} 30. Nc2 {[%emt 0:00:21]} h6 {[%emt 0:00:06]} 31. Qd2 {[%emt 0:00:19]} Bb3 {[%emt 0:00:04]} 32. g3 {[%emt 0:00:08]} Qb6 {[%emt 0:00:08]} 33. Kg2 {[%emt 0:00:14]} Qc6 {[%emt 0:00:06]} 34. Ne3 {[%emt 0:00:23]} Qxc1 {[%emt 0:00:02]} 0-1

[Event "Queens Festival Europe 2022"]
[Site "Tornelo"]
[Date "2022.06.19"]
[Round "8.6"]
[White "Machlik, Edit"]
[Black "Amrayeva, Aytan"]
[Result "0-1"]
[ECO "D36"]
[WhiteElo "2084"]
[BlackElo "2143"]
[Annotator "NA RC"]
[PlyCount "154"]
[EventDate "2022.06.19"]
[EventType "swiss"]
[EventCountry "NET"]
[SourceTitle "playchess.com"]
[Source "ChessBase"]
[SourceQuality "1"]
[TimeControl "180+2"]

1. d4 {[%emt 0:00:02]} d5 {[%emt 0:00:05]} 2. c4 {[%emt 0:00:04]} e6 {[%emt 0:00:01]} 3. Nc3 {[%emt 0:00:01]} Nf6 {[%emt 0:00:01]} 4. cxd5 {[%emt 0:00:02]} exd5 {[%emt 0:00:02]} 5. Bg5 {[%emt 0:00:02]} Be7 {[%emt 0:00:02]} 6. e3 {[%emt 0:00:01]} c6 {[%emt 0:00:02]} 7. Qc2 {[%emt 0:00:02]} O-O {[%emt 0:00:02]} 8. Bd3 {[%emt 0:00:03]} Nbd7 {[%emt 0:00:01]} 9. Nf3 {[%emt 0:00:04]} Re8 {[%emt 0:00:03]} 10. O-O {[%emt 0:00:04]} Nf8 {[%emt 0:00:02]} 11. h3 {[%emt 0:00:01]} g6 {[%emt 0:00:04]} 12. Rab1 {[%emt 0:00:03]} Ne6 {[%emt 0:00:01]} 13. Bxf6 {[%emt 0:00:21]} Bxf6 {[%emt 0:00:02]} 14. b4 {[%emt 0:00:01]} a6 {[%emt 0:00:04]} 15. a4 {[%emt 0:00:03]} Ng7 {[%emt 0:00:16]} 16. b5 {[%emt 0:00:05]} axb5 {[%emt 0:00:01]} 17. axb5 {[%emt 0:00:01]} Bf5 {[%emt 0:00:11]} 18. Rb3 {[%emt 0:00:28]} Rc8 {[%emt 0:00:05]} 19. bxc6 {[%emt 0:00:06]} bxc6 {[%emt 0:00:02]} 20. Na4 {[%emt 0:00:08]} Be7 {[%emt 0:00:20]} 21. Rc1 {[%emt 0:00:20]} Qa5 {[%emt 0:00:05]} 22. Bxf5 {[%emt 0:00:05]} Nxf5 {[%emt 0:00:05]} 23. Nc5 {[%emt 0:00:08]} Nd6 {[%emt 0:00:05]} 24. Ne5 {[%emt 0:00:04]} f6 {[%emt 0:00:14]} 25. Nxg6 {[%emt 0:00:16]} Nc4 {[%emt 0:00:09]} 26. Nxe7+ {[%emt 0:00:04]} Rxe7 {[%emt 0:00:03]} 27. Qf5 {[%emt 0:00:07]} Rf8 {[%emt 0:00:07]} 28. Qg4+ {[%emt 0:00:12]} Kh8 {[%emt 0:00:03]} 29. Qf5 {[%emt 0:00:08]} Qd2 {[%emt 0:00:02]} 30. Rf1 {[%emt 0:00:09]} Nd6 {[%emt 0:00:18]} 31. Qd3 {[%emt 0:00:03]} Qa2 {[%emt 0:00:04]} 32. Qb1 {[%emt 0:00:04]} Qa5 {[%emt 0:00:08]} 33. Qa1 {[%emt 0:00:08]} Qd2 {[%emt 0:00:06]} 34. Qc3 {[%emt 0:00:06]} Qa2 {[%emt 0:00:03]} 35. Qb2 {[%emt 0:00:04]} Qa7 {[%emt 0:00:07]} 36. Ra1 {[%emt 0:00:03]} Qc7 {[%emt 0:00:07]} 37. Qe2 {[%emt 0:00:09]} Rg8 {[%emt 0:00:03]} 38. Qf3 {[%emt 0:00:02]} f5 {[%emt 0:00:08]} 39. Rba3 {[%emt 0:00:04]} Qb8 {[%emt 0:00:11]} 40. Qf4 {[%emt 0:00:09]} Reg7 {[%emt 0:00:05]} 41. g3 {[%emt 0:00:01]} Nc4 {[%emt 0:00:33]} 42. Qxb8 {[%emt 0:00:03]} Rxb8 {[%emt 0:00:03]} 43. Ra8 {[%emt 0:00:02]} Rxa8 {[%emt 0:00:02]} 44. Rxa8+ {[%emt 0:00:02]} Rg8 {[%emt 0:00:01]} 45. Ra7 {[%emt 0:00:04]} Re8 {[%emt 0:00:03]} 46. Rc7 {[%emt 0:00:02]} Rb8 {[%emt 0:00:02]} 47. Rxc6 {[%emt 0:00:01]} Rb1+ {[%emt 0:00:02]} 48. Kg2 {[%emt 0:00:01]} Rb2 {[%emt 0:00:01]} 49. Kf3 {[%emt 0:00:03]} Kg7 {[%emt 0:00:02]} 50. Ne6+ {[%emt 0:00:03]} Kf7 {[%emt 0:00:03]} 51. Nf4 {[%emt 0:00:03]} Nd2+ {[%emt 0:00:03]} 52. Kg2 {[%emt 0:00:01]} Nc4 {[%emt 0:00:02]} 53. Rc7+ {[%emt 0:00:06]} Ke8 {[%emt 0:00:02]} 54. Nd3 {[%emt 0:00:02]} Rd2 {[%emt 0:00:03]} 55. Ne5 {[%emt 0:00:03]} Nxe3+ {[%emt 0:00:02]} 56. Kf3 {[%emt 0:00:01]} Nd1 {[%emt 0:00:01]} 57. Rc8+ {[%emt 0:00:05]} Ke7 {[%emt 0:00:03]} 58. g4 {[%emt 0:00:01]} Rxf2+ {[%emt 0:00:02]} 59. Kg3 {[%emt 0:00:02]} f4+ {[%emt 0:00:02]} 60. Kh4 {[%emt 0:00:02]} Rf1 {[%emt 0:00:03]} 61. Rc7+ {[%emt 0:00:02]} Ke8 {[%emt 0:00:03]} 62. Rxh7 {[%emt 0:00:01]} f3 {[%emt 0:00:03]} 63. Rf7 {[%emt 0:00:03]} f2 {[%emt 0:00:02]} 64. Rf6 {[%emt 0:00:02]} Rg1 {[%emt 0:00:02]} 65. Re6+ {[%emt 0:00:05]} Kd8 {[%emt 0:00:03]} 66. Rd6+ {[%emt 0:00:03]} Kc7 {[%emt 0:00:01]} 67. Rc6+ {[%emt 0:00:03]} Kb7 {[%emt 0:00:02]} 68. Rf6 {[%emt 0:00:02]} f1=Q {[%emt 0:00:02]} 69. Rxf1 {[%emt 0:00:01]} Rxf1 {[%emt 0:00:02]} 70. g5 {[%emt 0:00:02]} Ne3 {[%emt 0:00:01]} 71. Kh5 {[%emt 0:00:02]} Rg1 {[%emt 0:00:02]} 72. h4 {[%emt 0:00:02]} Nf5 {[%emt 0:00:02]} 73. g6 {[%emt 0:00:01]} Nxd4 {[%emt 0:00:01]} 74. Kh6 {[%emt 0:00:03]} Nf5+ {[%emt 0:00:02]} 75. Kh7 {[%emt 0:00:02]} d4 {[%emt 0:00:01]} 76. Nd3 {[%emt 0:00:02]} Kb6 {[%emt 0:00:02]} 77. h5 {[%emt 0:00:02]} Rg3 {[%emt 0:00:02]} 0-1

[Event "Queens Festival Europe 2022"]
[Site "Tornelo"]
[Date "2022.06.19"]
[Round "8.6"]
[White "Roy, Ali"]
[Black "Shabanaj, Eglantina"]
[Result "0-1"]
[ECO "A10"]
[WhiteElo "1893"]
[BlackElo "1986"]
[Annotator "NA RC"]
[PlyCount "76"]
[EventDate "2022.06.19"]
[EventType "swiss"]
[EventCountry "NET"]
[SourceTitle "playchess.com"]
[Source "ChessBase"]
[SourceQuality "1"]
[TimeControl "180+2"]

1. Nf3 {[%emt 0:00:02]} d5 {[%emt 0:00:11]} 2. g3 {[%emt 0:00:02]} c6 {[%emt 0:00:02]} 3. Bg2 {[%emt 0:00:02]} e6 {[%emt 0:00:01]} 4. O-O {[%emt 0:00:02]} f5 {[%emt 0:00:02]} 5. d3 {[%emt 0:00:01]} Nf6 {[%emt 0:00:02]} 6. Nbd2 {[%emt 0:00:02]} Nbd7 {[%emt 0:00:02]} 7. c4 {[%emt 0:00:02]} Bd6 {[%emt 0:00:03]} 8. b3 {[%emt 0:00:04]} O-O {[%emt 0:00:03]} 9. Bb2 {[%emt 0:00:01]} Qe8 {[%emt 0:00:03]} 10. cxd5 {[%emt 0:00:03]} cxd5 {[%emt 0:00:04]} 11. Rc1 {[%emt 0:00:04]} e5 {[%emt 0:00:04]} 12. e4 {[%emt 0:00:13]} fxe4 {[%emt 0:00:05]} 13. dxe4 {[%emt 0:00:00]} d4 {[%emt 0:00:02]} 14. Qe2 {[%emt 0:00:07]} Nc5 {[%emt 0:00:07]} 15. Qc4+ {[%emt 0:00:04]} Be6 {[%emt 0:00:03]} 16. Qe2 {[%emt 0:00:13]} Rc8 {[%emt 0:00:08]} 17. Ng5 {[%emt 0:00:06]} d3 {[%emt 0:00:09]} 18. Qd1 {[%emt 0:00:16]} h6 {[%emt 0:00:07]} 19. Nxe6 {[%emt 0:00:04]} Qxe6 {[%emt 0:00:03]} 20. Nc4 {[%emt 0:00:02]} Bb8 {[%emt 0:00:13]} 21. b4 {[%emt 0:00:03]} Ncxe4 {[%emt 0:00:02]} 22. Qxd3 {[%emt 0:00:10]} Rcd8 {[%emt 0:00:07]} 23. Qc2 {[%emt 0:00:08]} Ng5 {[%emt 0:00:12]} 24. Rfd1 {[%emt 0:00:07]} e4 {[%emt 0:00:05]} 25. Qe2 {[%emt 0:00:17]} Ng4 {[%emt 0:00:09]} 26. Rxd8 {[%emt 0:00:11]} Rxd8 {[%emt 0:00:05]} 27. h4 {[%emt 0:00:03]} Rf8 {[%emt 0:00:14]} 28. hxg5 {[%emt 0:00:04]} Rxf2 {[%emt 0:00:04]} 29. Qxe4 {[%emt 0:00:05]} Qxe4 {[%emt 0:00:12]} 30. Bxe4 {[%emt 0:00:00]} Bxg3 {[%emt 0:00:05]} 31. Rd1 {[%emt 0:00:23]} Rf4 {[%emt 0:00:12]} 32. Rd8+ {[%emt 0:00:04]} Kf7 {[%emt 0:00:03]} 33. g6+ {[%emt 0:00:04]} Ke7 {[%emt 0:00:03]} 34. Rd3 {[%emt 0:00:49]} Bf2+ {[%emt 0:00:05]} 35. Kg2 {[%emt 0:00:06]} Rxe4 {[%emt 0:00:01]} 36. Nd6 {[%emt 0:00:06]} Re2 {[%emt 0:00:05]} 37. Bxg7 {[%emt 0:00:04]} Bd4+ {[%emt 0:00:06]} 38. Kf3 {[%emt 0:00:02]} Rf2+ {[%emt 0:00:03]} 0-1

[Event "Queens Festival Europe 2022"]
[Site "Tornelo"]
[Date "2022.06.19"]
[Round "8.6"]
[White "Vukosavljevic, Tatjana"]
[Black "Khalilova, Khadija"]
[Result "1-0"]
[ECO "D02"]
[WhiteElo "1758"]
[BlackElo "1777"]
[Annotator "NA RC"]
[PlyCount "117"]
[EventDate "2022.06.19"]
[EventType "swiss"]
[EventCountry "NET"]
[SourceTitle "playchess.com"]
[Source "ChessBase"]
[SourceQuality "1"]
[TimeControl "180+2"]

1. Nf3 {[%emt 0:00:02]} Nf6 {[%emt 0:00:07]} 2. g3 {[%emt 0:00:02]} e6 {[%emt 0:00:05]} 3. Bg2 {[%emt 0:00:02]} d5 {[%emt 0:00:02]} 4. O-O {[%emt 0:00:01]} c5 {[%emt 0:00:02]} 5. d4 {[%emt 0:00:02]} Nc6 {[%emt 0:00:02]} 6. e3 {[%emt 0:00:03]} Be7 {[%emt 0:00:04]} 7. c4 {[%emt 0:00:02]} O-O {[%emt 0:00:02]} 8. b3 {[%emt 0:00:02]} Bd7 {[%emt 0:00:03]} 9. Bb2 {[%emt 0:00:01]} Rc8 {[%emt 0:00:02]} 10. Nbd2 {[%emt 0:00:02]} a6 {[%emt 0:00:03]} 11. Rc1 {[%emt 0:00:04]} cxd4 {[%emt 0:00:06]} 12. exd4 {[%emt 0:00:06]} dxc4 {[%emt 0:00:07]} 13. bxc4 {[%emt 0:00:03]} Nb4 {[%emt 0:00:06]} 14. Qb3 {[%emt 0:00:10]} b5 {[%emt 0:00:15]} 15. Ne5 {[%emt 0:00:27]} bxc4 {[%emt 0:00:14]} 16. Ndxc4 {[%emt 0:00:04]} Bb5 {[%emt 0:00:03]} 17. a4 {[%emt 0:00:13]} Bxc4 {[%emt 0:00:11]} 18. Rxc4 {[%emt 0:00:07]} Nfd5 {[%emt 0:00:11]} 19. Rfc1 {[%emt 0:00:09]} Rxc4 {[%emt 0:00:08]} 20. Qxc4 {[%emt 0:00:03]} a5 {[%emt 0:00:13]} 21. Nc6 {[%emt 0:00:04]} Qd7 {[%emt 0:00:05]} 22. Nxa5 {[%emt 0:00:07]} Qxa4 {[%emt 0:00:07]} 23. Nc6 {[%emt 0:00:08]} Bf6 {[%emt 0:00:08]} 24. Nxb4 {[%emt 0:00:04]} Qxb4 {[%emt 0:00:05]} 25. Qxb4 {[%emt 0:00:06]} Nxb4 {[%emt 0:00:03]} 26. Ba3 {[%emt 0:00:02]} Nd5 {[%emt 0:00:10]} 27. Bxf8 {[%emt 0:00:03]} Kxf8 {[%emt 0:00:07]} 28. Bxd5 {[%emt 0:00:04]} exd5 {[%emt 0:00:03]} 29. Rc5 {[%emt 0:00:02]} Bxd4 {[%emt 0:00:02]} 30. Rxd5 {[%emt 0:00:01]} Bf6 {[%emt 0:00:01]} 31. Rd7 {[%emt 0:00:04]} Ke8 {[%emt 0:00:03]} 32. Rb7 {[%emt 0:00:02]} h6 {[%emt 0:00:06]} 33. Kg2 {[%emt 0:00:02]} Be5 {[%emt 0:00:04]} 34. h4 {[%emt 0:00:04]} g5 {[%emt 0:00:06]} 35. hxg5 {[%emt 0:00:02]} hxg5 {[%emt 0:00:02]} 36. Kf3 {[%emt 0:00:02]} Bd4 {[%emt 0:00:09]} 37. Ke2 {[%emt 0:00:08]} Be5 {[%emt 0:00:04]} 38. g4 {[%emt 0:00:03]} Bf4 {[%emt 0:00:02]} 39. f3 {[%emt 0:00:02]} Kf8 {[%emt 0:00:08]} 40. Kd3 {[%emt 0:00:02]} Kg7 {[%emt 0:00:06]} 41. Ke4 {[%emt 0:00:02]} Kg6 {[%emt 0:00:03]} 42. Rb6+ {[%emt 0:00:04]} f6 {[%emt 0:00:03]} 43. Rb7 {[%emt 0:00:07]} Be5 {[%emt 0:00:03]} 44. Kd5 {[%emt 0:00:02]} Bf4 {[%emt 0:00:03]} 45. Ke6 {[%emt 0:00:02]} Be5 {[%emt 0:00:02]} 46. Rf7 {[%emt 0:00:03]} Bc3 {[%emt 0:00:02]} 47. Ke7 {[%emt 0:00:06]} Bb4+ {[%emt 0:00:10]} 48. Ke8 {[%emt 0:00:02]} Ba3 {[%emt 0:00:03]} 49. Ra7 {[%emt 0:00:08]} Bc5 {[%emt 0:00:03]} 50. Rc7 {[%emt 0:00:06]} Bd6 {[%emt 0:00:04]} 51. Rc6 {[%emt 0:00:04]} Bb4 {[%emt 0:00:02]} 52. Kd7 {[%emt 0:00:04]} Ba3 {[%emt 0:00:02]} 53. Ke6 {[%emt 0:00:02]} Bb2 {[%emt 0:00:03]} 54. Rc4 {[%emt 0:00:05]} Be5 {[%emt 0:00:03]} 55. Rc8 {[%emt 0:00:03]} Bb2 {[%emt 0:00:02]} 56. Rg8+ {[%emt 0:00:02]} Kh7 {[%emt 0:00:03]} 57. Kf7 {[%emt 0:00:02]} Bd4 {[%emt 0:00:04]} 58. Rd8 {[%emt 0:00:09]} Be5 {[%emt 0:00:03]} 59. Rd1 {[%emt 0:00:03]} 1-0

[Event "Queens Festival Europe 2022"]
[Site "Tornelo"]
[Date "2022.06.19"]
[Round "8.6"]
[White "Catabay, Mae Katelyn Rose"]
[Black "Jafarova, Aysel"]
[Result "1-0"]
[ECO "B01"]
[WhiteElo "1321"]
[BlackElo "1481"]
[Annotator "NA RC"]
[PlyCount "127"]
[EventDate "2022.06.19"]
[EventType "swiss"]
[EventCountry "NET"]
[SourceTitle "playchess.com"]
[Source "ChessBase"]
[SourceQuality "1"]
[TimeControl "180+2"]

1. e4 {[%emt 0:00:02]} d5 {[%emt 0:00:04]} 2. exd5 {[%emt 0:00:03]} Nf6 {[%emt 0:00:01]} 3. d4 {[%emt 0:00:02]} Nxd5 {[%emt 0:00:01]} 4. Nf3 {[%emt 0:00:04]} g6 {[%emt 0:00:02]} 5. c4 {[%emt 0:00:03]} Nb6 {[%emt 0:00:02]} 6. Nc3 {[%emt 0:00:03]} Bg7 {[%emt 0:00:01]} 7. Be3 {[%emt 0:00:02]} O-O {[%emt 0:00:02]} 8. Be2 {[%emt 0:00:05]} Nc6 {[%emt 0:00:02]} 9. O-O {[%emt 0:00:05]} Bg4 {[%emt 0:00:01]} 10. c5 {[%emt 0:00:12]} Nd5 {[%emt 0:00:05]} 11. Rc1 {[%emt 0:00:10]} Nxc3 {[%emt 0:00:14]} 12. bxc3 {[%emt 0:00:02]} e5 {[%emt 0:00:05]} 13. d5 {[%emt 0:00:17]} Ne7 {[%emt 0:00:03]} 14. c4 {[%emt 0:00:04]} e4 {[%emt 0:00:21]} 15. Nd4 {[%emt 0:00:08]} Bxe2 {[%emt 0:00:05]} 16. Qxe2 {[%emt 0:00:02]} Qd7 {[%emt 0:00:22]} 17. Rb1 {[%emt 0:00:09]} Rab8 {[%emt 0:00:07]} 18. Qc2 {[%emt 0:00:04]} Nf5 {[%emt 0:00:16]} 19. Qxe4 {[%emt 0:00:14]} Rfe8 {[%emt 0:00:02]} 20. Qf4 {[%emt 0:00:04]} Nxe3 {[%emt 0:00:04]} 21. fxe3 {[%emt 0:00:02]} Qe7 {[%emt 0:00:01]} 22. Rbe1 {[%emt 0:00:06]} Qxc5 {[%emt 0:00:03]} 23. Qxf7+ {[%emt 0:00:01]} Kh8 {[%emt 0:00:03]} 24. Ne6 {[%emt 0:00:02]} Re7 {[%emt 0:00:21]} 25. Qf8+ {[%emt 0:00:07]} Bxf8 {[%emt 0:00:02]} 26. Nxc5 {[%emt 0:00:11]} Rxe3 {[%emt 0:00:16]} 27. Rxe3 {[%emt 0:00:02]} Bxc5 {[%emt 0:00:01]} 28. Rfe1 {[%emt 0:00:02]} Re8 {[%emt 0:00:02]} 29. Kf2 {[%emt 0:00:02]} Kg7 {[%emt 0:00:06]} 30. Kf3 {[%emt 0:00:01]} Rf8+ {[%emt 0:00:02]} 31. Kg3 {[%emt 0:00:13]} Bxe3 {[%emt 0:00:03]} 32. Rxe3 {[%emt 0:00:02]} Rf7 {[%emt 0:00:04]} 33. Re8 {[%emt 0:00:09]} Kf6 {[%emt 0:00:15]} 34. Ra8 {[%emt 0:00:09]} a6 {[%emt 0:00:06]} 35. Rb8 {[%emt 0:00:03]} b6 {[%emt 0:00:02]} 36. Re8 {[%emt 0:00:02]} Kg5 {[%emt 0:00:05]} 37. h4+ {[%emt 0:00:05]} Kh5 {[%emt 0:00:04]} 38. Re5+ {[%emt 0:00:02]} Kh6 {[%emt 0:00:04]} 39. a4 {[%emt 0:00:07]} Kg7 {[%emt 0:00:05]} 40. Re6 {[%emt 0:00:02]} Rf6 {[%emt 0:00:03]} 41. Rxf6 {[%emt 0:00:08]} Kxf6 {[%emt 0:00:01]} 42. Kf4 {[%emt 0:00:02]} h6 {[%emt 0:00:07]} 43. g4 {[%emt 0:00:02]} g5+ {[%emt 0:00:08]} 44. hxg5+ {[%emt 0:00:02]} hxg5+ {[%emt 0:00:01]} 45. Ke4 {[%emt 0:00:01]} Kf7 {[%emt 0:00:22]} 46. Kf5 {[%emt 0:00:02]} Ke7 {[%emt 0:00:03]} 47. Kxg5 {[%emt 0:00:02]} c6 {[%emt 0:00:01]} 48. dxc6 {[%emt 0:00:03]} Kd6 {[%emt 0:00:01]} 49. Kh6 {[%emt 0:00:01]} Kxc6 {[%emt 0:00:02]} 50. g5 {[%emt 0:00:01]} Kc5 {[%emt 0:00:01]} 51. g6 {[%emt 0:00:01]} Kxc4 {[%emt 0:00:01]} 52. g7 {[%emt 0:00:01]} Kb4 {[%emt 0:00:01]} 53. g8=Q {[%emt 0:00:03]} Kxa4 {[%emt 0:00:03]} 54. Qc4+ {[%emt 0:00:02]} Ka5 {[%emt 0:00:05]} 55. Kg5 {[%emt 0:00:04]} b5 {[%emt 0:00:02]} 56. Qb3 {[%emt 0:00:02]} b4 {[%emt 0:00:03]} 57. Kf5 {[%emt 0:00:03]} Kb5 {[%emt 0:00:01]} 58. Ke4 {[%emt 0:00:01]} a5 {[%emt 0:00:02]} 59. Kd3 {[%emt 0:00:04]} a4 {[%emt 0:00:01]} 60. Qd5+ {[%emt 0:00:01]} Kb6 {[%emt 0:00:03]} 61. Kc4 {[%emt 0:00:02]} b3 {[%emt 0:00:01]} 62. Qb5+ {[%emt 0:00:06]} Kc7 {[%emt 0:00:02]} 63. Qxa4 {[%emt 0:00:04]} b2 {[%emt 0:00:02]} 64. Qb3 {[%emt 0:00:05]} 1-0